[Event "Peace Tournament 2019"]
[Site "Zagreb"]
[Date "2019.11.30"]
[Round "11.6"]
[White "Nisipeanu, Liviu-Dieter"]
[Black "Kozul, Zdenko"]
[Result "1/2-1/2"]
[ECO "B52"]
[WhiteElo "2656"]
[BlackElo "2593"]
[Annotator "ChessBase"]
[PlyCount "25"]
[EventDate "2019.11.19"]
[EventType "tourn"]
[EventCountry "CRO"]
[SourceTitle "playchess.com"]
[Source "ChessBase"]
[SourceQuality "1"]
[TimeControl "40/5400+30:1800+30"]

1. e4 {[%emt 0:00:30]} c5 {[%emt 0:00:30]} 2. Nf3 {[%emt 0:00:00]} d6 {[%emt 0:00:30]} 3. Bb5+ {[%emt 0:00:00]} Bd7 {[%emt 0:00:30]} 4. Bxd7+ {[%emt 0:00:30]} Nxd7 {[%emt 0:00:30]} 5. O-O {[%emt 0:00:00]} Ngf6 {[%emt 0:00:30]} 6. Qe2 {[%emt 0:00:00]} e6 {[%emt 0:01:30]} 7. c3 {[%emt 0:00:30]} Be7 {[%emt 0:00:30]} 8. d4 {[%emt 0:00:00]} cxd4 {[%emt 0:00:30]} 9. cxd4 {[%emt 0:00:00]} d5 {[%emt 0:00:00]} 10. e5 {[%emt 0:00:30]} Ne4 {[%emt 0:00:00]} 11. Nbd2 {[%emt 0:00:00]} Nxd2 {[%emt 0:01:30]} 12. Bxd2 {[%emt 0:00:00]} Nb8 {[%emt 0:01:30]} 13. Rac1 {[%emt 0:00:30]} 1/2-1/2